bitfinex-derivatives/quotes_BTCF0:USTF0_20250517
["timestamp","ask_amount","ask_price","bid_price","bid_amount"]
[1747504358688,0.097,103270.0,103260.0,1.71703364]
[1747504358895,0.097,103270.0,103260.0,2.43863364]
[1747504359791,0.097,103270.0,103260.0,1.71703364]
[1747504359997,0.097,103270.0,103260.0,2.43863364]
[1747504361892,0.097,103270.0,103260.0,1.71703364]
[1747504362094,0.097,103270.0,103260.0,2.23311364]
[1747504362292,0.097,103270.0,103260.0,2.40727364]
[1747504362493,0.097,103270.0,103260.0,1.99639364]
[1747504362790,0.097,103270.0,103260.0,2.4784777]
[1747504363501,0.097,103270.0,103260.0,2.5102777]
[1747504364798,0.097,103270.0,103260.0,2.5555254]
[1747504365897,0.097,103270.0,103260.0,2.51031391]
[1747504366595,0.097,103270.0,103260.0,2.14951391]
[1747504367297,0.097,103270.0,103260.0,2.01663232]
[1747504367491,0.097,103270.0,103260.0,2.06189615]
[1747504369901,0.097,103270.0,103260.0,1.70109615]
[1747504370198,0.097,103270.0,103260.0,2.06189615]
[1747504370596,0.097,103270.0,103260.0,1.70109615]
[1747504370803,0.097,103270.0,103260.0,2.01663232]
[1747504371597,0.097,103270.0,103260.0,1.65583232]
[1747504371797,0.097,103270.0,103260.0,2.01663232]
[1747504371994,0.097,103270.0,103260.0,2.07814985]
[1747504376898,0.097,103270.0,103260.0,2.14965137]
[1747504377398,0.097,103270.0,103260.0,2.51045137]
[1747504378003,0.097,103270.0,103260.0,2.14965137]
[1747504378194,0.097,103270.0,103260.0,2.51045137]
[1747504379804,0.097,103270.0,103260.0,1.78885137]
[1747504380200,0.097,103270.0,103260.0,2.51045137]
[1747504380798,0.097,103270.0,103260.0,2.37743232]
[1747504383594,0.097,103270.0,103260.0,2.47510575]
[1747504384003,0.097,103270.0,103260.0,2.37743232]
[1747504385913,0.097,103270.0,103260.0,2.42672523]
[1747504386103,0.097,103270.0,103260.0,2.42660523]
[1747504389610,0.097,103270.0,103260.0,1.70500523]
[1747504389800,0.097,103270.0,103260.0,2.42660523]
[1747504390305,0.097,103270.0,103260.0,2.3289318]
[1747504390505,0.097,103270.0,103260.0,2.42660523]
[1747504392814,0.19467343,103270.0,103260.0,1.8233318]
[1747504393002,0.38826063,103270.0,103260.0,2.0285318]
[1747504393205,0.56826063,103270.0,103260.0,2.0285318]
[1747504393404,0.56826063,103270.0,103260.0,1.1017318]
[1747504393699,0.56826063,103270.0,103260.0,1.25849881]
[1747504393904,0.56826063,103270.0,103260.0,1.0040059]
[1747504394104,0.92906063,103270.0,103260.0,1.0040059]
[1747504394405,1.37357407,103270.0,103260.0,0.12]
[1747504394606,1.37357407,103270.0,103260.0,0.3136059]
[1747504394801,0.1936059,103260.0,103250.0,0.50593352]
[1747504395010,0.45215276,103260.0,103250.0,0.86593352]
[1747504395310,0.63215276,103260.0,103250.0,0.76033943]
[1747504396111,1.33980076,103260.0,103250.0,0.66353223]
[1747504396314,1.08980076,103260.0,103250.0,0.66353223]
[1747504396704,1.08980076,103260.0,103250.0,0.45353223]
[1747504396705,1.33980076,103260.0,103250.0,0.45353223]
[1747504397210,1.33980076,103260.0,103250.0,0.38058186]
[1747504397609,1.33980076,103260.0,103250.0,0.23058186]
[1747504397911,1.34580076,103260.0,103250.0,0.03696916]
[1747504398113,1.37810076,103260.0,103250.0,0.03696916]
[1747504398314,1.55891852,103260.0,103250.0,0.03696916]
[1747504398910,1.57326782,103260.0,103250.0,0.03696916]
[1747504399411,1.57426782,103260.0,103250.0,0.03696916]
[1747504399814,1.57126782,103260.0,103250.0,0.03696916]
[1747504400014,1.57626782,103260.0,103250.0,0.03696916]
[1747504400314,1.93706782,103260.0,103250.0,0.03696916]
[1747504401215,2.14234782,103260.0,103250.0,0.03696916]
[1747504401417,2.29303807,103260.0,103250.0,0.03696916]
[1747504401809,2.29303807,103260.0,103240.0,0.2904552]
[1747504401810,0.1936247,103250.0,103240.0,0.2904552]
[1747504402002,0.71459813,103250.0,103240.0,0.6504552]
[1747504402207,0.89459813,103250.0,103240.0,0.5536365]
[1747504402607,1.08912756,103250.0,103240.0,0.36]
[1747504402908,0.1936434,103240.0,103230.0,0.21062953]
[1747504403113,1.02529026,103240.0,103230.0,0.45062953]
[1747504403513,1.02529026,103240.0,103230.0,0.25696733]
[1747504403710,1.02529026,103240.0,103230.0,0.45062963]
[1747504403914,1.03629026,103240.0,103230.0,0.21062963]
[1747504404111,1.03729026,103240.0,103230.0,0.21062963]
[1747504405317,1.03629026,103240.0,103230.0,0.21062963]
[1747504405515,1.04029026,103240.0,103230.0,0.21062963]
[1747504405823,1.24561026,103240.0,103230.0,0.21062963]
[1747504406119,1.24461026,103240.0,103230.0,0.21062963]
[1747504406313,1.24961026,103240.0,103230.0,0.21062963]
[1747504406819,0.88881026,103240.0,103230.0,0.21062963]
[1747504407019,1.24961026,103240.0,103230.0,0.21062963]
[1747504409722,1.24961026,103240.0,103230.0,0.53062963]
[1747504410223,1.24961026,103240.0,103230.0,0.56062963]
[1747504411223,0.88881026,103240.0,103230.0,0.56062963]
[1747504411424,1.24961026,103240.0,103230.0,0.56062963]
[1747504411619,1.24961026,103240.0,103230.0,0.24062963]
[1747504413730,1.34647826,103240.0,103230.0,0.01696733]
[1747504414727,1.34647826,103240.0,103230.0,0.03696733]
[1747504415419,1.34639826,103240.0,103230.0,0.23062963]
[1747504415621,1.34639826,103240.0,103230.0,0.03696733]
[1747504416321,1.34639826,103240.0,103230.0,0.01696733]
[1747504418126,1.34639826,103240.0,103230.0,0.21062963]
[1747504418429,1.34639826,103240.0,103230.0,0.01696733]
[1747504419526,1.24953026,103240.0,103230.0,0.01696733]
[1747504420024,1.15275486,103240.0,103220.0,0.2420843]
[1747504420232,0.38753573,103230.0,103220.0,0.6020843]
[1747504420530,0.38753573,103230.0,103220.0,0.5536811]
[1747504420531,0.75833573,103230.0,103220.0,0.5536811]
[1747504420719,0.75833573,103230.0,103220.0,0.5865811]
[1747504421130,0.75833573,103230.0,103220.0,0.6195811]
[1747504421429,0.75833573,103230.0,103220.0,0.4259]
[1747504421623,0.75833573,103230.0,103220.0,0.339581]
[1747504422030,0.75833573,103230.0,103220.0,0.1459]
[1747504422332,0.193681,103220.0,103210.0,0.37052245]
[1747504422526,0.35445443,103220.0,103210.0,0.76642245]
[1747504423325,1.01816786,103220.0,103210.0,0.07686885]
[1747504423541,1.02916786,103220.0,103210.0,0.14686885]
[1747504423731,1.23440786,103220.0,103210.0,0.14686885]
[1747504424026,1.53129186,103220.0,103210.0,0.01096885]
[1747504424229,1.53329186,103220.0,103210.0,0.01096885]
[1747504424427,1.63196529,103220.0,103210.0,0.01096885]
[1747504424622,1.63196529,103220.0,103210.0,0.00096885]
[1747504424830,0.1936998,103210.0,103200.0,0.20276916]
[1747504425034,0.77767323,103210.0,103200.0,0.24276916]
[1747504425837,0.6809998,103210.0,103200.0,0.24276916]
[1747504426133,0.77867323,103210.0,103200.0,0.29276916]
[1747504426633,0.77967323,103210.0,103200.0,0.29276916]
[1747504426836,0.78167323,103210.0,103200.0,0.29276916]
[1747504427033,0.78067323,103210.0,103200.0,0.2558]
[1747504427234,0.96367323,103210.0,103200.0,0.2558]
[1747504427836,0.60287323,103210.0,103200.0,0.2558]
[1747504428130,0.78367323,103210.0,103200.0,0.2558]
[1747504428835,0.75367323,103210.0,103200.0,0.2558]
[1747504429135,0.93367323,103210.0,103200.0,0.2558]
[1747504429341,1.11449099,103210.0,103200.0,0.2558]
[1747504429838,1.11449099,103210.0,103200.0,0.4095186]
[1747504429839,0.99654491,103210.0,103200.0,0.4095186]
[1747504430035,1.29949834,103210.0,103200.0,0.8017186]
[1747504430331,0.91421834,103210.0,103200.0,0.8017186]
[1747504430537,0.54349099,103210.0,103200.0,0.8017186]
[1747504431943,0.69418124,103210.0,103200.0,0.8017186]
[1747504433538,1.05498124,103210.0,103200.0,0.8017186]
[1747504433744,0.69418124,103210.0,103200.0,0.8017186]
[1747504433944,1.05498124,103210.0,103200.0,0.8017186]
[1747504434146,0.69418124,103210.0,103200.0,0.8017186]
[1747504434346,0.59650781,103210.0,103200.0,0.8017186]
[1747504434541,0.69418124,103210.0,103200.0,0.8017186]
[1747504434746,1.05498124,103210.0,103200.0,0.8017186]
[1747504435048,0.69418124,103210.0,103200.0,0.8017186]
[1747504435236,1.05498124,103210.0,103200.0,0.8017186]
[1747504435745,0.69418124,103210.0,103200.0,0.8017186]
[1747504436149,1.05498124,103210.0,103200.0,0.8017186]
[1747504436646,0.59650781,103210.0,103200.0,0.8017186]
[1747504436948,0.59650781,103210.0,103200.0,1.1625186]
[1747504437149,0.59650781,103210.0,103200.0,1.3425186]
[1747504440056,0.56330781,103210.0,103200.0,1.3425186]
[1747504440256,0.56330781,103210.0,103200.0,1.1625186]
[1747504441858,0.53120781,103210.0,103200.0,1.26019203]
[1747504442062,0.53120781,103210.0,103200.0,1.1625186]
[1747504443357,0.56180781,103210.0,103200.0,1.1625186]
[1747504443657,0.65948124,103210.0,103200.0,1.1625186]
[1747504443859,0.50879099,103210.0,103200.0,1.1625186]
[1747504444260,0.54139099,103210.0,103200.0,1.1625186]
[1747504446051,0.54139099,103210.0,103200.0,1.19948776]
[1747504446052,0.44371756,103210.0,103200.0,1.19948776]
[1747504446351,0.44371756,103210.0,103200.0,1.37948776]
[1747504447361,0.4128267,103210.0,103200.0,1.37948776]
[1747504454164,0.4128267,103210.0,103200.0,1.01868776]
[1747504454366,0.4128267,103210.0,103200.0,1.37948776]
[1747504459065,0.4128267,103210.0,103200.0,1.42877997]
[1747504459262,0.2568998,103210.0,103200.0,1.42877997]
[1747504460767,0.2568998,103210.0,103200.0,1.06797997]
[1747504460966,0.2568998,103210.0,103200.0,1.42877997]
[1747504461169,0.2568998,103210.0,103200.0,1.24877997]
[1747504462068,0.2568998,103210.0,103200.0,1.42877997]
[1747504462958,0.2568998,103210.0,103200.0,1.39181081]
[1747504463159,0.2568998,103210.0,103200.0,1.21181081]
[1747504466071,0.2568998,103210.0,103200.0,1.39181081]
[1747504467069,0.2568998,103210.0,103200.0,1.57181081]
[1747504467369,0.2568998,103210.0,103200.0,1.39181081]
[1747504467569,0.2568998,103210.0,103200.0,1.3425186]
[1747504468964,0.2890998,103210.0,103200.0,1.3425186]
[1747504469168,0.2890998,103210.0,103200.0,1.1625186]
[1747504471873,0.2890998,103210.0,103200.0,0.8017186]
[1747504472065,0.2890998,103210.0,103200.0,1.1625186]
[1747504472373,0.2890998,103210.0,103200.0,1.24886019]
[1747504473470,0.38677323,103210.0,103200.0,1.24886019]
[1747504474471,0.53746348,103210.0,103200.0,1.24886019]
[1747504475368,0.53746348,103210.0,103200.0,0.88806019]
[1747504475666,0.53746348,103210.0,103200.0,1.24886019]
[1747504477177,0.43979005,103210.0,103200.0,1.24886019]
[1747504477679,0.43979005,103210.0,103200.0,1.21181081]
[1747504478171,0.43979005,103210.0,103200.0,1.39181081]
[1747504479173,0.43979005,103210.0,103200.0,1.21181081]
[1747504484279,0.53746348,103210.0,103200.0,1.21181081]
[1747504485983,0.53746348,103210.0,103200.0,0.85101081]
[1747504486185,0.53746348,103210.0,103200.0,1.21181081]
[1747504486983,0.53746348,103210.0,103200.0,0.85101081]
[1747504487187,0.53746348,103210.0,103200.0,1.21181081]
[1747504488686,0.43979005,103210.0,103200.0,1.21181081]
[1747504491091,0.43979005,103210.0,103200.0,0.85101081]
[1747504491283,0.43979005,103210.0,103200.0,1.21181081]
[1747504493790,0.40889929,103210.0,103200.0,1.21181081]
[1747504495994,0.40889929,103210.0,103200.0,0.85101081]
[1747504496299,0.40889929,103210.0,103200.0,1.21181081]
[1747504496686,0.50657272,103210.0,103200.0,1.21181081]
[1747504497586,0.40889929,103210.0,103200.0,1.21181081]
[1747504498892,0.40889929,103210.0,103200.0,1.17961081]
[1747504506305,0.50657272,103210.0,103200.0,1.17961081]
[1747504508502,0.40889929,103210.0,103200.0,1.17961081]
[1747504512509,0.37669929,103210.0,103200.0,1.17961081]
[1747504512715,0.21389025,103210.0,103200.0,1.40685767]
[1747504513010,0.21389025,103210.0,103200.0,1.30918424]
[1747504513203,0.21389025,103210.0,103200.0,1.53736079]
[1747504515608,0.40758995,103210.0,103200.0,1.53736079]
[1747504516410,0.50526338,103210.0,103200.0,1.43968736]
[1747504516616,0.53616338,103210.0,103200.0,0.98118736]
[1747504517207,0.53616338,103210.0,103200.0,0.80118736]
[1747504517709,0.89696338,103210.0,103200.0,0.39301081]
[1747504517903,0.89696338,103210.0,103200.0,0.44301081]
[1747504518115,1.07696338,103210.0,103200.0,0.44301081]
[1747504519117,1.07696338,103210.0,103200.0,0.77301081]
[1747504520214,1.23289028,103210.0,103200.0,0.77301081]
[1747504521118,1.05289028,103210.0,103200.0,0.77301081]
[1747504522117,1.23289028,103210.0,103200.0,0.77301081]
[1747504522418,1.23289028,103210.0,103200.0,0.39301081]
[1747504522620,1.23289028,103210.0,103200.0,0.73301081]
[1747504523122,1.05289028,103210.0,103200.0,0.73301081]
[1747504524020,1.05289028,103210.0,103200.0,0.74301081]
[1747504524319,1.05289028,103210.0,103200.0,0.78005197]
[1747504528725,1.05289028,103210.0,103200.0,0.73075976]
[1747504531017,1.05289028,103210.0,103200.0,0.38075976]
[1747504531217,1.05289028,103210.0,103200.0,0.70075976]
[1747504531519,1.05289028,103210.0,103200.0,0.18704116]
[1747504531724,1.17056371,103210.0,103200.0,0.23704116]
[1747504532222,1.33056371,103210.0,103200.0,0.18704116]
[1747504532427,1.57056371,103210.0,103200.0,0.18704116]
[1747504532621,1.47289028,103210.0,103200.0,0.18704116]
[1747504532827,1.57056371,103210.0,103200.0,0.18704116]
[1747504533726,1.57456371,103210.0,103200.0,0.18704116]
[1747504533924,1.57756371,103210.0,103200.0,0.18704116]
[1747504535724,1.42687346,103210.0,103200.0,0.18704116]
[1747504536028,1.32920003,103210.0,103200.0,0.18704116]
[1747504536228,1.32920003,103210.0,103200.0,0.15]
[1747504536738,1.32920003,103210.0,103200.0,0.3437184]
[1747504536922,1.12920003,103210.0,103200.0,0.15]
[1747504541131,1.49000003,103210.0,103200.0,0.15]
[1747504542524,1.58767346,103210.0,103200.0,0.15]
[1747504542735,1.49000003,103210.0,103200.0,0.15]
[1747504544333,1.49000003,103210.0,103200.0,0.16]
[1747504544525,1.49000003,103210.0,103200.0,0.1926]
[1747504545135,1.31000003,103210.0,103200.0,0.1926]
[1747504545822,1.31000003,103210.0,103200.0,0.1826]
[1747504546135,1.49000003,103210.0,103200.0,0.1826]
[1747504549636,1.39397376,103210.0,103180.0,0.2421883]
[1747504549940,0.65221083,103190.0,103180.0,0.6861268]
[1747504550141,0.5545374,103190.0,103180.0,0.6839268]
[1747504550440,0.71731083,103190.0,103180.0,0.6839268]
[1747504550843,0.40998895,103190.0,103180.0,0.6839268]
[1747504551044,0.50766238,103190.0,103180.0,0.6839268]
[1747504554744,0.40998895,103190.0,103180.0,0.6839268]
[1747504555046,0.50766238,103190.0,103180.0,0.6839268]
[1747504555248,0.50766238,103190.0,103180.0,0.8639268]
[1747504556448,0.50766238,103190.0,103180.0,0.90096796]
[1747504557245,0.40998895,103190.0,103180.0,0.72096796]
[1747504557548,0.34488885,103190.0,103180.0,1.17944139]
[1747504558242,0.34488885,103190.0,103180.0,1.35944139]
[1747504562242,0.34488885,103190.0,103180.0,1.37169244]
[1747504563351,0.31399228,103190.0,103180.0,1.37169244]
[1747504564853,0.31399228,103190.0,103180.0,1.40279244]
[1747504566454,0.12025498,103190.0,103180.0,1.64046587]
[1747504566653,0.12025498,103190.0,103180.0,1.99086587]
[1747504566859,0.12025498,103190.0,103180.0,2.33777787]
[1747504567055,0.11080508,103190.0,103180.0,2.33777787]
[1747504567255,0.11080508,103190.0,103180.0,2.34322003]
[1747504567855,0.3516461,103200.0,103190.0,0.1937374]
[1747504568053,0.3516461,103200.0,103190.0,1.60759083]
[1747504568251,0.3516461,103200.0,103190.0,1.78759083]
[1747504569360,0.3821461,103200.0,103190.0,1.78759083]
[1747504570657,0.3821461,103200.0,103190.0,1.83688304]
[1747504573561,0.4151461,103200.0,103190.0,1.83688304]
[1747504574956,0.2214269,103200.0,103190.0,1.83688304]
[1747504575153,0.1579269,103200.0,103190.0,1.83688304]
[1747504576152,0.1879269,103200.0,103190.0,1.83688304]
[1747504576553,0.1879269,103200.0,103190.0,2.18728304]
[1747504577552,0.032,103200.0,103190.0,2.18728304]
[1747504579661,0.065,103200.0,103190.0,2.18728304]
[1747504580655,0.002,103200.0,103190.0,2.18728304]
[1747504580850,0.002,103200.0,103190.0,2.28495647]
[1747504581155,0.002,103200.0,103190.0,1.83688304]
[1747504581359,0.002,103200.0,103190.0,1.8423252]
[1747504581963,0.002,103200.0,103190.0,1.89052914]
[1747504582765,0.002,103200.0,103190.0,1.89152914]
[1747504582965,0.002,103200.0,103190.0,2.24192914]
[1747504583665,0.002,103200.0,103190.0,2.24292914]
[1747504584869,0.002,103200.0,103190.0,2.03768914]
[1747504585163,0.0346,103200.0,103190.0,2.19355693]
[1747504585468,0.0346,103200.0,103190.0,2.18811477]
[1747504585657,0.03181456,103200.0,103190.0,2.18811477]
[1747504587963,0.03181456,103200.0,103190.0,2.19005285]
[1747504588462,0.02236604,103200.0,103190.0,1.83965285]
[1747504588662,0.05536604,103200.0,103190.0,1.83965285]
[1747504589065,0.05536604,103200.0,103190.0,1.90117038]
[1747504589359,0.05536604,103200.0,103190.0,1.54037038]
[1747504589564,0.05536604,103200.0,103190.0,2.26197038]
[1747504593467,0.05536604,103200.0,103190.0,2.33577463]
[1747504594466,0.05536604,103200.0,103190.0,2.68617463]
[1747504597672,0.05536604,103200.0,103190.0,2.60016698]
[1747504599070,0.05536604,103200.0,103190.0,1.87856698]
[1747504599282,0.05536604,103200.0,103190.0,2.60016698]
[1747504602375,0.05536604,103200.0,103190.0,2.61237038]
[1747504602777,0.05536604,103200.0,103190.0,2.61781254]
[1747504603676,0.05536604,103200.0,103190.0,2.61237038]
[1747504603973,0.05536604,103200.0,103190.0,1.89077038]
[1747504604179,0.05536604,103200.0,103190.0,2.61237038]
[1747504605479,0.05536604,103200.0,103190.0,1.89077038]
[1747504605678,0.05536604,103200.0,103190.0,2.61237038]
[1747504606479,0.05536604,103200.0,103190.0,2.68624708]
[1747504606670,0.05536604,103200.0,103190.0,2.73151091]
[1747504610082,0.05536604,103200.0,103190.0,2.00991091]
[1747504610282,0.05536604,103200.0,103190.0,2.73151091]
[1747504611086,0.05536604,103200.0,103190.0,2.00991091]
[1747504611289,0.05536604,103200.0,103190.0,2.73151091]
[1747504612185,0.0244768,103200.0,103190.0,2.73151091]
[1747504612786,0.0244768,103200.0,103190.0,2.79184117]
[1747504614782,0.0244768,103200.0,103190.0,2.79728333]
[1747504614998,0.0244768,103200.0,103190.0,2.80983993]
[1747504615801,0.0244768,103200.0,103190.0,2.80439777]
[1747504616005,0.0306,103210.0,103200.0,0.29139203]
[1747504616201,0.0306,103210.0,103200.0,1.24809203]
[1747504616697,0.0306,103210.0,103200.0,1.1504186]
[1747504616901,0.0306,103210.0,103200.0,1.65709597]
[1747504621505,0.0306,103210.0,103200.0,2.00749597]
[1747504622611,0.0306,103210.0,103200.0,2.21265597]
[1747504622908,0.0306,103210.0,103200.0,2.3482804]
[1747504624411,0.0306,103210.0,103200.0,2.5534004]
[1747504626408,0.0306,103210.0,103200.0,1.8318004]
[1747504626610,0.0306,103210.0,103200.0,2.5534004]
[1747504627514,0.0306,103210.0,103200.0,2.1431204]
[1747504627705,0.0306,103210.0,103200.0,2.5534004]
[1747504628514,0.0306,103210.0,103200.0,1.8318004]
[1747504628715,0.0306,103210.0,103200.0,2.5534004]
[1747504630914,0.0306,103210.0,103200.0,1.8318004]
[1747504631110,0.0306,103210.0,103200.0,2.5534004]
[1747504635311,0.0306,103210.0,103200.0,2.25060697]
[1747504635502,0.0306,103210.0,103200.0,2.18790697]
[1747504635708,0.0306,103210.0,103200.0,2.39298697]
[1747504635907,0.0306,103210.0,103200.0,2.39290697]
[1747504636108,0.0306,103210.0,103200.0,1.98274697]
[1747504636515,0.0306,103210.0,103200.0,1.63234697]
[1747504637717,0.0306,103210.0,103200.0,1.69734697]
[1747504638219,0.0306,103210.0,103200.0,1.7950204]
[1747504641513,0.0306,103210.0,103200.0,2.0001004]
[1747504643022,0.0306,103210.0,103200.0,1.6393004]
[1747504643222,0.0306,103210.0,103200.0,1.59109646]
[1747504644022,0.0306,103210.0,103200.0,1.23029646]
[1747504644223,0.0306,103210.0,103200.0,1.59109646]
[1747504645022,0.0306,103210.0,103200.0,1.23029646]
[1747504645225,0.0306,103210.0,103200.0,1.59109646]
[1747504645420,0.0306,103210.0,103200.0,1.49342303]
[1747504645625,0.0306,103210.0,103200.0,1.59109646]
[1747504646514,0.0614,103210.0,103200.0,1.59109646]
[1747504646916,0.0614,103210.0,103200.0,1.50487543]
[1747504648324,0.2414,103210.0,103200.0,1.50487543]
[1747504651920,0.39248528,103210.0,103200.0,1.50487543]
[1747504652926,0.36188528,103210.0,103200.0,1.50487543]
[1747504653426,0.39298528,103210.0,103200.0,1.55317012]
[1747504654129,0.21298528,103210.0,103200.0,1.55317012]
[1747504655831,0.21298528,103210.0,103200.0,1.63924255]
[1747504656137,0.39298528,103210.0,103200.0,1.63924255]
[1747504657225,0.39298528,103210.0,103200.0,1.27844255]
[1747504657431,0.39298528,103210.0,103200.0,1.63924255]
[1747504658130,0.21298528,103210.0,103200.0,1.63924255]
[1747504660729,0.18209599,103210.0,103200.0,1.63924255]
[1747504662332,0.36209599,103210.0,103200.0,1.63924255]
[1747504663838,0.2111,103210.0,103200.0,1.63924255]
[1747504665131,0.0311,103210.0,103200.0,1.27844255]
[1747504665331,0.0311,103210.0,103200.0,1.63924255]
[1747504670233,0.2111,103210.0,103200.0,1.63924255]
[1747504671143,0.0311,103210.0,103200.0,1.63924255]
[1747504671840,0.0311,103210.0,103200.0,1.27844255]
[1747504672139,0.0311,103210.0,103200.0,1.63924255]
[1747504679747,0.0311,103210.0,103200.0,1.27844255]
[1747504679941,0.0311,103210.0,103200.0,1.63924255]
[1747504683853,0.0311,103210.0,103200.0,1.59094786]
[1747504684651,0.0311,103210.0,103200.0,1.50489347]
[1747504685053,0.0311,103210.0,103200.0,1.14409347]
[1747504685259,0.0311,103210.0,103200.0,1.50489347]
[1747504686053,0.18251207,103210.0,103200.0,1.14409347]
[1747504686356,0.18251207,103210.0,103200.0,1.50489347]
[1747504687756,0.18251207,103210.0,103200.0,1.14409347]
[1747504688051,0.18251207,103210.0,103200.0,1.50489347]
[1747504693156,0.18251207,103210.0,103200.0,1.14409347]
[1747504693346,0.18251207,103210.0,103200.0,1.50489347]
[1747504694050,0.18251207,103210.0,103200.0,1.14409347]
[1747504694051,0.15141207,103210.0,103200.0,1.14409347]
[1747504694249,0.15141207,103210.0,103200.0,1.6025669]
[1747504694847,0.18321207,103210.0,103200.0,1.69589498]
[1747504695054,0.18321207,103210.0,103200.0,1.59822155]
[1747504695455,0.18321207,103210.0,103200.0,1.80310155]
[1747504695759,0.18321207,103210.0,103200.0,1.70742812]
[1747504695956,0.18321207,103210.0,103200.0,1.80510155]
[1747504696551,0.18321207,103210.0,103200.0,1.80310155]
[1747504696958,0.18865423,103210.0,103200.0,1.75783772]
[1747504697361,0.18865423,103210.0,103200.0,1.39703772]
[1747504697658,0.18865423,103210.0,103200.0,1.75783772]
[1747504698046,0.18321207,103210.0,103200.0,1.75783772]
[1747504698459,0.18321207,103210.0,103200.0,1.39703772]
[1747504698656,0.18321207,103210.0,103200.0,1.75783772]
[1747504700360,0.0318,103210.0,103200.0,1.75783772]
[1747504701763,0.0318,103210.0,103200.0,1.84368448]
[1747504702559,0.0318,103210.0,103200.0,1.54113105]
[1747504702759,0.0952,103210.0,103200.0,1.84364448]
[1747504703158,0.2752,103210.0,103200.0,1.63880448]
[1747504703360,0.2752,103210.0,103200.0,1.84364448]
[1747504703774,0.2752,103210.0,103200.0,1.54113105]
[1747504703954,0.56657323,103210.0,103200.0,1.71337105]
[1747504704154,0.56657323,103210.0,103200.0,1.50853105]
[1747504704351,0.56657323,103210.0,103200.0,0.87705105]
[1747504704558,0.66346924,103210.0,103200.0,0.87705105]
[1747504704867,0.66346924,103210.0,103200.0,0.8289868]
[1747504705064,0.6689114,103210.0,103200.0,0.6352682]
[1747504705262,1.0297114,103210.0,103200.0,0.8289867]
[1747504705467,1.0297114,103210.0,103200.0,0.5789867]
[1747504706271,1.0297114,103210.0,103200.0,0.4437185]
[1747504706463,1.0297114,103210.0,103200.0,0.25]
[1747504706662,0.1937186,103200.0,103190.0,0.40270221]
[1747504706867,0.84686546,103200.0,103190.0,0.75270221]
[1747504707166,1.12376946,103200.0,103190.0,0.75270221]
[1747504707465,1.09288023,103200.0,103190.0,0.75270221]
[1747504707966,1.09288023,103200.0,103190.0,0.75370221]
[1747504708561,0.9952068,103200.0,103190.0,0.75570221]
[1747504708760,0.9952068,103200.0,103190.0,0.65883781]
[1747504708959,1.09288023,103200.0,103190.0,0.39668581]
[1747504709365,1.09388023,103200.0,103190.0,0.39468581]
[1747504709965,1.10370334,103200.0,103190.0,0.39468581]
[1747504710169,1.10370334,103200.0,103190.0,0.20468581]
[1747504710469,1.10570334,103200.0,103190.0,0.20368581]
[1747504711063,1.51542334,103200.0,103190.0,0.20368581]
[1747504711567,1.51542334,103200.0,103190.0,0.1789433]
[1747504711968,1.51542334,103200.0,103190.0,0.0389433]
[1747504713871,1.52542334,103200.0,103190.0,0.0389433]
[1747504714462,1.88622334,103200.0,103190.0,0.0389433]
[1747504715773,2.03763541,103200.0,103190.0,0.0389433]
[1747504716375,2.04307757,103200.0,103190.0,0.00193808]
[1747504716772,2.04307757,103200.0,103190.0,0.19567498]
[1747504716973,1.63335757,103200.0,103190.0,0.19567498]
[1747504717162,1.62791541,103200.0,103190.0,0.56567498]
[1747504718167,1.62791541,103200.0,103190.0,0.19567498]
[1747504718365,1.62791541,103200.0,103190.0,0.57567498]
[1747504719670,1.53101141,103200.0,103190.0,0.57567498]
[1747504720970,1.62817798,103200.0,103190.0,0.60637498]
[1747504721471,1.61835487,103200.0,103190.0,0.63817498]
[1747504721675,1.61835487,103200.0,103190.0,0.66997498]
[1747504721974,1.41351487,103200.0,103190.0,0.66997498]
[1747504722175,1.05271487,103200.0,103190.0,0.66997498]
[1747504722775,0.7014867,103200.0,103190.0,0.66997498]
[1747504723268,0.69191487,103200.0,103190.0,0.66997498]
[1747504725473,1.05271487,103200.0,103190.0,0.29997498]
[1747504725671,1.05271487,103200.0,103190.0,0.62997498]
[1747504726778,0.69191487,103200.0,103190.0,0.62997498]
[1747504726977,1.05271487,103200.0,103190.0,0.62997498]
[1747504727375,1.06227644,103200.0,103190.0,0.62997498]
[1747504728578,1.06227644,103200.0,103190.0,0.29997498]
[1747504728879,1.06227644,103200.0,103190.0,0.59997498]
[1747504729870,0.70147644,103200.0,103190.0,0.59997498]
[1747504730074,1.06227644,103200.0,103190.0,0.59997498]
[1747504730469,1.15994987,103200.0,103190.0,0.59997498]
[1747504731184,0.97994987,103200.0,103190.0,0.59997498]
[1747504732471,0.97994987,103200.0,103190.0,0.06443808]
[1747504732666,0.97994987,103200.0,103190.0,0.25817488]
[1747504732870,0.97994987,103200.0,103190.0,0.59817488]
[1747504733580,0.97994987,103200.0,103190.0,0.63077488]
[1747504737675,0.61914987,103200.0,103190.0,0.63077488]
[1747504737977,0.97994987,103200.0,103190.0,0.63077488]
[1747504738485,0.88227644,103200.0,103190.0,0.63077488]
[1747504740169,1.29191644,103200.0,103190.0,0.63077488]
[1747504744884,0.77970437,103200.0,103190.0,0.63077488]
[1747504745089,1.14050437,103200.0,103190.0,0.63077488]
[1747504745783,1.14050437,103200.0,103190.0,0.64077488]
[1747504745986,1.2381778,103200.0,103190.0,0.64077488]
[1747504746190,0.8773778,103200.0,103190.0,0.64077488]
[1747504746378,1.2381778,103200.0,103190.0,0.64077488]
[1747504746683,1.2381778,103200.0,103190.0,0.44703808]
[1747504746881,1.2381778,103200.0,103190.0,0.64077488]
[1747504747485,1.2381778,103200.0,103190.0,0.6777801]
[1747504749589,1.04283094,103200.0,103190.0,0.6777801]
[1747504749795,1.2381778,103200.0,103190.0,0.6777801]
[1747504750985,1.04283094,103200.0,103190.0,0.6777801]
[1747504751289,1.14050437,103200.0,103190.0,0.6777801]
[1747504751784,0.77970437,103200.0,103190.0,0.6777801]
[1747504751981,1.04283094,103200.0,103190.0,0.6777801]
[1747504752186,1.14050437,103200.0,103190.0,0.6777801]
[1747504752488,0.73086437,103200.0,103190.0,0.6777801]
[1747504752689,1.14038437,103200.0,103190.0,0.6777801]
[1747504754791,1.29631127,103200.0,103190.0,0.6777801]
[1747504756191,0.93551127,103200.0,103190.0,0.6777801]
[1747504756391,1.29631127,103200.0,103190.0,0.6777801]
[1747504758993,1.2867497,103200.0,103190.0,0.6777801]
[1747504762095,0.9259497,103200.0,103190.0,0.6777801]
[1747504762497,1.2867497,103200.0,103190.0,0.6777801]
[1747504762997,0.9259497,103200.0,103190.0,0.6777801]
[1747504763294,1.2867497,103200.0,103190.0,0.6777801]
[1747504764397,0.9259497,103200.0,103190.0,0.6777801]
[1747504764598,1.2867497,103200.0,103190.0,0.6777801]
[1747504765994,1.2867497,103200.0,103190.0,0.3277801]
[1747504766199,1.2867497,103200.0,103190.0,0.6477801]
[1747504766798,1.38442313,103200.0,103190.0,0.6477801]